Cogmind - Beta 17.1 @@@ ROGUE MODE // 2026.09.13 @ 12:15:56 Player: Somberlain Result: Destroyed by Y-45 Defender with Beam Rifle Performance ------------- Evolutions (2) 1000 Regions Visited (5) 1000 Robots Destroyed (27) 135 Value Destroyed (463) 463 Prototype IDs (1) 20 Alien Tech Used (0) 0 Bonus (0) 0 TOTAL SCORE: 2618 Bonus ------- None Cogmind --------- Core Integrity 0/550 Matter 240/300 Energy 84/100 System Corruption 0% Temperature Cool (10) Movement Hovering (60) Location -8/Storage Parts ------- > --- POWER (1) -------- (None) > --- PROPULSION (3) --- Airjet > --- UTILITY (5) ------ Advanced Visual Processing Unit Improved Signal Interpreter Hacking Suite System Shield > --- WEAPON (2) ------- (None) > --- INVENTORY (5) ---- Deuterium Engine Mining Laser Great Maul Peak State ------------ > --- POWER ------------ (None) > --- PROPULSION ------- Flight Unit Flight Unit Flight Unit > --- UTILITY ---------- Heat Sink Advanced Visual Processing Unit Reaction Control System Improved Light Armor Plating Hacking Suite > --- WEAPON ----------- Spread Laser Field Laser > --- INVENTORY -------- Flight Unit Flight Unit Small Storage Unit Improved EM Shotgun Mining Laser [Rating: 21] Favorites ----------- Power Ion Engine Engine Ion Engine Propulsion Flight Unit Leg Aluminum Leg Hover Unit Airjet Flight Unit Flight Unit Utility Heat Sink Device Heat Sink Storage Small Storage Unit Processor Advanced Visual Processing Unit Hackware Hacking Suite Protection Improved Light Armor Plating Weapon Medium Laser Energy Gun Medium Laser Energy Cannon Beam Cannon Ballistic Gun Light Assault Rifle Special Weapon Mining Laser Impact Weapon Great Maul Build | -11 -10 -9 -9 -8 -8 ------- Run | Yrd Mat Mat Min Mat Sto Slots Evolved 4 | . . 2 . 2 . Power . | . . . . . . Propulsion 1 | . . . . 1 . Utility 3 | . . 2 . 1 . Weapon . | . . . . . . Parts Attached 32 | 6 5 9 . 8 4 Power 3 | 1 . 1 . . 1 Engine 3 | 1 . 1 . . 1 Core . | . . . . . . Reactor . | . . . . . . Propulsion 11 | 2 2 3 . 3 1 Treads . | . . . . . . Leg 2 | 2 . . . . . Wheel . | . . . . . . Hover 1 | . . . . . 1 Flight 8 | . 2 3 . 3 . Utility 9 | 1 1 2 . 3 2 Device 2 | . 1 . . 1 . Storage 1 | 1 . . . . . Processor 3 | . . 1 . 1 1 Hackware 2 | . . 1 . . 1 Protection 1 | . . . . 1 . Artifact . | . . . . . . Weapon 9 | 2 2 3 . 2 . Energy Gun 5 | 1 1 2 . 1 . Energy Cannon 1 | . 1 . . . . Ballistic Gun 1 | 1 . . . . . Ballistic Cannon . | . . . . . . Launcher . | . . . . . . Special Weapon 1 | . . 1 . . . Impact Weapon 1 | . . . . 1 . Slashing Weapon . | . . . . . . Piercing Weapon . | . . . . . . Special Melee Weapon . | . . . . . . Unidentified Prototypes 1 | . . 1 . . . Parts Lost 10 | . . 1 . 8 1 Power 1 | . . . . 1 . Propulsion 6 | . . 1 . 5 . Utility 2 | . . . . 2 . Weapon 1 | . . . . . 1 Highest Loss Streak 7 | . . 1 . 7 1 To Critical Strikes . | . . . . . . Average Backups 2 | . 1 4 5 4 2 Power . | . . . . . . Propulsion . | . . 1 3 1 . Utility . | . . 1 1 . . Weapon 1 | . . 1 1 1 2 Tool/Special . | . . . . . . Unused Backups 3 | . . 3 . . . Power . | . . . . . . Propulsion 1 | . . 1 . . . Utility . | . . . . . . Weapon 2 | . . 2 . . . Tool/Special . | . . . . . . Average Slot Usage (%) 72 | . 87 74 88 66 29 Engine 7 | . 14 5 11 1 . Leg 8 | . 22 . . . . Flight 13 | . 5 21 22 22 . Device 8 | . 7 11 11 12 . Storage 4 | . 11 . . . . Processor 6 | . . 9 11 9 10 Hackware 6 | . . 11 11 9 12 Energy Gun 10 | . 14 15 11 6 1 Energy Cannon 3 | . 8 . . . . Ballistic Gun 1 | . 3 . . . . Impact Weapon 1 | . . . . 4 3 Peak Build Rating 21 | 6 7 14 12 21 18 Average Rating 9 | 4 6 11 12 14 9 On Entrance 6 | . 6 5 12 12 6 Avg Prop Armor Cover (%) 4 | . . . . 4 . Naked Turns . | . . . . . . Heaviest Build 16 | 13 16 8 8 10 4 Greatest Support 20 | 20 20 8 8 15 8 Greatest Overweight (x) 1 | . . . . 1 1 Average Overweight (x) . | . . . . . . Largest Inventory Capacity 8 | 8 8 5 5 5 5 Average Capacity 5 | 6 7 5 5 5 5 Most Carried 5 | . 5 5 5 5 4 Average Carried 2 | . 1 4 5 4 2 Final Capacity 8 | 8 5 5 5 5 5 Final Carried 5 | . 4 5 5 3 3 Class Distribution -------------------- 49% | Mutant 43% | Scavenger-Mutant 7% | Hacker-Mutant Dominant Class ---------------- Mutant | -10/Materials Scavenger-Mutant | -9/Materials Scavenger-Mutant | -9/Mines Scavenger-Mutant | -8/Materials Hacker-Mutant | -8/Storage Resources | -11 -10 -9 -9 -8 -8 ----------- Run | Yrd Mat Mat Min Mat Sto Matter Collected 520 | 245 48 107 . 95 25 Remotely . | . . . . . . Salvage Created 584 | . 183 163 . 178 60 Parts 48 | . 17 20 . 7 4 Haulers Intercepted 1 | . 1 . . . . Recyclers Shooed . | . . . . . . Parts Field Recycled . | . . . . . . Retrieved Matter . | . . . . . . Parts Self-Destructed . | . . . . . . Prevented . | . . . . . . Parts Restored . | . . . . . . Kills | -11 -10 -9 -9 -8 -8 ------- Run | Yrd Mat Mat Min Mat Sto Combat Hostiles Destroyed 22 | . 7 8 . 6 1 Melee 1 | . . . . 1 . Guns 16 | . 3 8 . 4 1 Cannons 4 | . 4 . . . . Classes Destroyed 7 | . 4 2 . 1 . Worker 1 | . . 1 . . . Hauler 1 | . 1 . . . . Operator 1 | . 1 . . . . Watcher 2 | . . . . 2 . Swarmer 17 | . 6 7 . 4 . Grunt 1 | . 1 . . . . Sentry 4 | . . 1 . 2 1 Best Kill Streak 4 | . 4 4 . 4 1 Combat Bots Only 4 | . 4 3 . 4 1 Max Kills in Single Turn 2 | . 1 2 . 2 1 Gunslinging 1 | . . . . 1 . Exploded . | . . . . . . Melee 1 | . . . . 1 . Uniques/NPCs Destroyed . | . . . . . . Combat | -11 -10 -9 -9 -8 -8 -------- Run | Yrd Mat Mat Min Mat Sto Hostile Shots Fired 184 | . 55 34 1 78 16 Missed 62 | . 12 13 1 30 6 Hits 122 | . 43 21 . 48 10 Projectile 122 | . 43 21 . 48 10 Critical Strikes 4 | . . 2 . 2 . Damage Taken 1408 | . 362 221 . 675 150 Core 686 | . 69 64 . 464 89 Absorbed by Shields . | . . . . . . Core Remaining (%) 85 | 100 72 . 84 . . Volleys Fired 54 | . 26 16 . 6 6 Largest 2 | . 2 2 . 2 1 Hottest 128 | . 110 110 . 128 45 Shots Fired 83 | . 44 21 . 12 6 Gun 65 | . 26 21 . 12 6 Cannon 18 | . 18 . . . . Launcher . | . . . . . . Special . | . . . . . . Kinetic . | . . . . . . Thermal 67 | . 44 11 . 12 . Explosive . | . . . . . . Electromagnetic 16 | . . 10 . . 6 Robot Hit Streak 10 | . 7 10 . 3 7 Robot Miss Streak 8 | . 3 8 . 4 1 Penetration Max . | . . . . . . Secondary Targets 3 | . . 2 . 1 . Max Gunslinging Chain 1 | . . 1 . 1 . Shots Hit Robots 66 | . 23 16 . 21 6 Core Hits 42 | . 12 16 . 11 3 Critical Kills . | . . . . . . Critical Parts Destroyed 3 | . . . . 3 . Critical Strikes 5 | . 2 . . 3 . Burn 2 | . 2 . . . . Smash 3 | . . . . 3 . Melee Attacks 18 | . . . . 16 2 Impact 18 | . . . . 16 2 Slashing . | . . . . . . Piercing . | . . . . . . Sneak Attacks 1 | . . . . 1 . Combat Hostiles . | . . . . . . Follow-up Attacks . | . . . . . . Damage Inflicted 1380 | . 376 239 . 664 101 Guns 639 | . 202 209 . 127 101 Cannons 174 | . 174 . . . . Explosions 30 | . . 30 . . . Melee 537 | . . . . 537 . Ramming . | . . . . . . Kinetic . | . . . . . . Thermal 645 | . 376 142 . 127 . Explosive . | . . . . . . Electromagnetic 198 | . . 97 . . 101 Impact 537 | . . . . 537 . Slashing . | . . . . . . Piercing . | . . . . . . Highest Corruption . | . . . . . . Average Corruption . | . . . . . . Corruption Purged . | . . . . . . Corruption Blocked . | . . . . . . Overload Shots . | . . . . . . Overflow Damage 166 | . . . . 166 . Projectiles . | . . . . . . Explosions . | . . . . . . Melee 166 | . . . . 166 . Knockbacks . | . . . . . . Impact . | . . . . . . Kinetic . | . . . . . . Secondary . | . . . . . . Self-Inflicted Damage . | . . . . . . Shots . | . . . . . . Rammed . | . . . . . . Targets Rammed . | . . . . . . Kicked . | . . . . . . Crushed . | . . . . . . Highest Temperature 300 | . 300 46 . 115 . Average Temperature 73 | . 96 11 . 66 . Received Heat Transfer 381 | . 30 54 . 243 54 Effects 2 | . 2 . . . . Interference 2 | . 2 . . . . Siege Activations . | . . . . . . Martial Activations . | . . . . . . Shielding Activations . | . . . . . . Robots Disrupted . | . . . . . . Combat Hostiles . | . . . . . . Robots Corrupted 1 | . . . . 1 . Combat Hostiles 1 | . . . . 1 . Parts Fried 4 | . . . . 2 2 Impact Corruptions 4 | . . . . 4 . Robots Melted . | . . . . . . Combat Hostiles . | . . . . . . Parts Melted 1 | . 1 . . . . Heat Transferred 1521 | . 1110 200 . 211 . Parts Sabotaged . | . . . . . . Parts Stolen . | . . . . . . Parts Stripped . | . . . . . . Power Chain Reactions 1 | . . 1 . . . Alert | -11 -10 -9 -9 -8 -8 ------- Run | Yrd Mat Mat Min Mat Sto Maximum Alert Level . | . . . . . . Low Security (%) 100 | 100 100 100 100 100 100 Level 1 . | . . . . . . Level 2 . | . . . . . . Level 3 . | . . . . . . Level 4 . | . . . . . . Level 5 . | . . . . . . High Security . | . . . . . . Max Security . | . . . . . . Peak Influence 143 | . 88 143 55 84 30 Initial 55 | . . 26 55 13 3 Average 36 | . 36 57 49 41 4 Influence Increases 609 | . 173 210 . 181 45 Destroy 0b10 Robot/C 440 | . 140 160 . 120 20 Destroy 0b10 Robot/NC 25 | . 10 5 . 10 . Destroy Leader 86 | . 22 20 . 34 10 Successful Hack 21 | . . 7 . 14 . Disable Machine 15 | . . . . . 15 Destroy Structure 7 | . 1 3 . 3 . Partial Spotted 15 | . . 15 . . . Influence Decreases 604 | . 110 130 108 206 50 Entered New Map 154 | . . 37 88 22 7 Time Decay 360 | . 110 83 20 114 33 Lost Part 90 | . . 10 . 70 10 Squads Dispatched 2 | . 1 1 . . . Investigation 1 | . . 1 . . . Extermination . | . . . . . . Reinforcement 1 | . 1 . . . . Assault . | . . . . . . Garrison . | . . . . . . Intercept . | . . . . . . Searches Triggered . | . . . . . . Construction Impeded . | . . . . . . Haulers Reinforced . | . . . . . . Active Scanning Responses . | . . . . . . Cargo Convoy Interrupts . | . . . . . . Stealth | -11 -10 -9 -9 -8 -8 --------- Run | Yrd Mat Mat Min Mat Sto Distress Signals 3 | . 1 1 . 1 . Communications Jammed . | . . . . . . Distress Signals . | . . . . . . Times Spotted 46 | . 12 11 2 13 8 Peak Tracking Total 7 | . 4 4 2 6 7 Tactical Retreats . | . . . . . . Traps | -11 -10 -9 -9 -8 -8 ------- Run | Yrd Mat Mat Min Mat Sto Traps Triggered . | . . . . . . Indirectly . | . . . . . . Trap Hack Attempts . | . . . . . . Triggered . | . . . . . . Disarmed . | . . . . . . Reprogrammed . | . . . . . . Reused . | . . . . . . Traps Extracted . | . . . . . . Installed . | . . . . . . Triggered . | . . . . . . Machines | -11 -10 -9 -9 -8 -8 ---------- Run | Yrd Mat Mat Min Mat Sto Machines Disabled 1 | . . . . . 1 Max in Single Turn 1 | . . . . . 1 Machines Repaired . | . . . . . . Machines Dismantled . | . . . . . . Machines Sabotaged . | . . . . . . Overloaded Fab Kills . | . . . . . . Hacking | -11 -10 -9 -9 -8 -8 --------- Run | Yrd Mat Mat Min Mat Sto Machines Accessed 5 | . . 2 . 3 . Terminals 4 | . . 2 . 2 . Fabricators . | . . . . . . Repair Stations . | . . . . . . Recycling Units . | . . . . . . Scanalyzers 1 | . . . . 1 . Garrison Access . | . . . . . . Total Hacks 13 | . . 5 . 8 . Successful 7 | . . 1 . 6 . Failed 6 | . . 4 . 2 . Catastrophic 1 | . . . . 1 . Database Lockouts . | . . . . . . Manual 5 | . . 3 . 2 . Terminals 9 | . . 5 . 4 . Fabricators . | . . . . . . Repair Stations . | . . . . . . Recycling Units . | . . . . . . Scanalyzers 4 | . . . . 4 . Garrison Access . | . . . . . . Terminal Hacks 4 | . . 1 . 3 . Repair Station Index 1 | . . . . 1 . Hauler Manifests 1 | . . . . 1 . Registered Components 2 | . . 1 . 1 . Fabricator Hacks . | . . . . . . Repair Station Hacks . | . . . . . . Recycling Unit Hacks . | . . . . . . Scanalyzer 3 | . . . . 3 . Retrieve Study 3 | . . . . 3 . Garrison Access Hacks . | . . . . . . Unauthorized Hacks . | . . . . . . Terminals . | . . . . . . Fabricators . | . . . . . . Repair Stations . | . . . . . . Recycling Units . | . . . . . . Scanalyzers . | . . . . . . Garrison Access . | . . . . . . Data Cores Recovered . | . . . . . . Used . | . . . . . . Hacking Detections 3 | . . 2 . 1 . Full Trace Events 1 | . . 1 . . . Feedback Events . | . . . . . . Feedback Blocked . | . . . . . . Robot Schematics Acquired . | . . . . . . Robots Built . | . . . . . . Authchips . | . . . . . . Time . | . . . . . . Total Robot Build Rating . | . . . . . . Part Schematics Acquired . | . . . . . . Parts Built . | . . . . . . Authchips . | . . . . . . Time . | . . . . . . Total Part Build Rating . | . . . . . . Part Studies Acquired 3 | . . . . 3 . Parts Repaired . | . . . . . . Time . | . . . . . . Parts Recycled . | . . . . . . Recycled Matter . | . . . . . . Retrieved Matter . | . . . . . . Retrieved Components . | . . . . . . Parts Scanalyzed . | . . . . . . Part Schematics Acquired . | . . . . . . Parts Damaged . | . . . . . . Bothacking | -11 -10 -9 -9 -8 -8 ------------ Run | Yrd Mat Mat Min Mat Sto Used RIF Installer . | . . . . . . Robots Hacked . | . . . . . . Non-combat . | . . . . . . Combat . | . . . . . . Robot Hacks Applied . | . . . . . . Relay Couplers Released . | . . . . . . Fabnet Peak Effective % . | . . . . . . Robots Rewired . | . . . . . . Allies Hacked . | . . . . . . Hacks Repelled . | . . . . . . Allies | -11 -10 -9 -9 -8 -8 -------- Run | Yrd Mat Mat Min Mat Sto Total Allies . | . . . . . . Largest Group . | . . . . . . Highest-Rated Group . | . . . . . . Highest-Rated Ally . | . . . . . . Total Orders . | . . . . . . Ally Attacks . | . . . . . . Total Damage . | . . . . . . Kills . | . . . . . . Allies Corrupted . | . . . . . . Allies Melted . | . . . . . . Intel | -11 -10 -9 -9 -8 -8 ------- Run | Yrd Mat Mat Min Mat Sto Active Infowar (turns) 597 | . . 187 41 250 119 Optics 597 | . . 187 41 250 119 Robot Analysis Total . | . . . . . . Derelict Logs Recovered 1 | . . . 1 . . Drone Launches . | . . . . . . Drone Recoveries . | . . . . . . Exploration | -11 -10 -9 -9 -8 -8 ------------- Run | Yrd Mat Mat Min Mat Sto Turns Passed 1008 | 46 357 195 41 250 119 Spaces Moved 1140 | 33 307 235 91 328 146 Core 156 | 3 . . . 24 129 Treads . | . . . . . . Legs 210 | 30 180 . . . . Wheels . | . . . . . . Hover 17 | . . . . . 17 Flight 757 | . 127 235 91 304 . Fastest Speed 34 | 50 37 37 37 34 50 Average Speed 54 | 113 85 37 37 37 56 Slowest Speed 120 | 120 120 37 37 100 100 Overloaded Moves . | . . . . . . Propulsion Burnouts . | . . . . . . Robots Hopped 5 | . 1 . 4 . . Potential Cave-ins . | . . . . . . Cave-ins Triggered . | . . . . . . Exploration Rate (%) 26 | 4 51 22 19 26 34 Regions Visited 5 Branch Regions 2 Pre-discovered Areas . | . . . . . . Known Exits Taken 1 | . . . . 1 . Unknown Exits Taken 4 | 1 1 1 1 . . Scrap Searched . | . . . . . . Spaces Dug 2 | . . . . 2 . Terrain Destroyed 4 | . . 2 . 2 . Melee 2 | . . . . 2 . Projectile . | . . . . . . AOE 2 | . . 2 . . . Terrain Rammed . | . . . . . . Walls Destroyed . | . . . . . . Machines Disabled . | . . . . . . Actions | -11 -10 -9 -9 -8 -8 --------- Run | Yrd Mat Mat Min Mat Sto Total 1392 | 38 356 322 93 411 172 Wait 113 | . 9 48 7 43 6 Move 1126 | 32 304 234 83 327 146 Hop 4 | . 1 . 3 . . Pick Up 12 | . 6 5 . 1 . Fast Attach 20 | 6 1 5 . 4 4 Attach 13 | . 2 3 . 4 4 Detach 11 | . 1 3 . 3 4 Swap 6 | . 2 2 . 2 . Drop 15 | . 4 6 . 5 . Fire 54 | . 26 16 . 6 6 Melee 18 | . . . . 16 2 Ram . | . . . . . . Kick . | . . . . . . Crush . | . . . . . . Escape Stasis . | . . . . . . Rewire . | . . . . . . Trap . | . . . . . . Miscellaneous . | . . . . . . Route ------- -11/Scrapyard -10/Materials (discovered 3 exits: *Mat x2 / [*Min]) -9/Materials -9/Mines -8/Materials (discovered 2 exits: *Sto x2) -8/Storage History --------- Turn | Location | Event 26 | -11/Scrapyard | Discovered new exit (range 16) 47 | -11/Scrapyard | Entered Materials 59 | -10/Materials | Discovered new exit (range 13) 307 | -10/Materials | Build established: Mutant 307 | -10/Materials | Discovered new exit (range 16) 343 | -10/Materials | Discovered new exit (range 12) 404 | -10/Materials | Entered another Materials area 404 | -9/Materials | Evolved 2 slots: Utility x2 592 | -9/Materials | Discovered new exit (range 7) 599 | -9/Materials | Entered Mines 606 | -9/Mines | Received a Rocket Launcher from a helpful Derelict 634 | -9/Mines | Discovered new exit (range 8) 640 | -9/Mines | Entered Materials 640 | -8/Materials | Evolved 2 slots: Propulsion x1, Utility x1 641 | -8/Materials | Identified exit to Storage 711 | -8/Materials | Build established: Scavenger-Mutant 804 | -8/Materials | Discovered exit to Storage (range 18) 879 | -8/Materials | Core integrity fell below 50% 888 | -8/Materials | Core integrity fell below 20% 890 | -8/Materials | Entered Storage 901 | -8/Storage | Lost 7 parts (5n2u) 1009 | -8/Storage | Destroyed by Y-45 Defender with Beam Rifle Last Messages --------------- crushing effect. 00867_ Y-45 Defender system terminally corrupted. 00870_ Heat Sink destroyed. 00874_ K-01 Serf collects debris. 00876_ Critical hit (Burn: +37). 00878_ K-01 Serf collects debris. LOCATION=STORAGE GOAL=ESCAPE 00942_ K-01 Serf collects debris. 00945_ Heat Sink fried. 00945_ Y-45 Defender destroyed. 00946_ Imp. EM Shotgun destroyed. 00947_ K-01 Serf collects debris. 00948_ Acquired 25 matter. 00951_ Acquired System Shield. 00982_ Storage Shell breached. 00987_ Acquired Imp. Signal Interpreter. 00989_ Acquired Airjet. 00993_ Acquired Deuterium Engine. Map ----- +----------------------------------------------------+ | ???????????????????????????????????? | | ???????????????????????????????????? | | ???????##+#????????????????????????? | | ??????? #????????????????????????? | | ?????? #????????????????????????? | | +##### ?????????????????????????? | | ??????????????????????????? | | #???????????????????????????? | | = #???????????????????????????? | | [ #???????????????????????????? | | #???????????????????????????? | | #???????????????????????????? | | # ! #?###???????????????????? | | #???????????????????? | | ###### #?# #???????????????????? | | ############ #???????????????????? | | ## # #???????????????????? | | + """" # #???????????????????? | | #### ""!]" # ######### #??????? | | ???# """ ]" + #??????? | | #### "* """ # #??????? | | # " !"" # ######## #??????? | | # """ # #???#####+#####????? | | # # ##### """ ####?? | | ########/## + """ """#?? | | #??????# ##### """@ G"#?? | | #??????# ##+##???# """#?? | | ####??????# #?? ???# ####?? | | ??????????#+#??? ?# "Y" #????? | | ?????????????????? ## """ #????? | | ???????????????????## #????? | | ????????????????????##Y#"T"####????? | | ?????????????????????#######???????? | | ???????????????????????????????????? | | ???????????????????????????????????? | | ???????????????????????????????????? | | ???????????????????????????????????? | | ???????????????????????????????????? | | ???????????????????????????????????? | | ???????????????????????????????????? | | ???????????????????????????????????? | | ???????????????????????????????????? | | ???????????????????????????????????? | | ???????????????????????????????????? | | ???????????????????????????????????? | | ???????????????????????????????????? | | ???????????????????????????????????? | | ???????????????????????????????????? | | ???????????????????????????????????? | | ???????????????????????????????????? | +----------------------------------------------------+ Best States ------------- Heat Dissipation 41 Energy Generation 10 Energy Capacity 250 Matter Stores 300 Matter Capacity 300 Sight Range 20 Terrain Scan Density 10 Armor Coverage 150 Evasion (%) 63 Offensive Hacking 10 Defensive Hacking 10 Item Schematics ----------------- None Robot Schematics ------------------ None Fabricated ------------ Nothing Repaired ---------- Nothing Studied --------- Flight Unit | -8/Materials | Hacked Field Laser | -8/Materials | Hacked Spread Laser | -8/Materials | Hacked Alien Tech Used ----------------- None Achievements -------------- None Challenges ------------ None Game ------ Seed TargetCoolantBroadsword Manual? 0 Play Time 00:12:36 Cumulative 108.0 hours Start 2026.09.13 @ 12:04:45 End 2026.09.13 @ 12:15:56 Sessions 1 Manual Loads 0 Difficulty Rogue Special Mode None Game No. 121 Rogue 121 Adventurer 0 Explorer 0 Win Type - Total 0 Types 0/0/0/0/0/0/0/0/0/0 Lore% 45 Gallery% 51 Achievement% 42 Wizard Run 0 Options --------- Layout 1 ASCII 0 Keyboard 0 Movement Mouse Keybinds 0 Fullscreen 2 Font 24/Smallcaps Map View 50x35 Zoom Use 0% Tactical HUD 1 Map Filters NONE Filters NONE Steam 1 RUN: 60218b77-28c3-429f-9109-ef9cb25226c7